Cogmind - Beta 11 @@@ ROGUE MODE // 2022.03.23 @ 07:45:08 Player: Demise Result: Destroyed by as-86315 with Assembled F-torch Performance ------------- Evolutions (0) 0 Regions Visited (2) 400 Robots Destroyed (19) 95 Value Destroyed (367) 367 Prototype IDs (5) 100 Alien Tech Used (0) 0 Bonus (170) 170 TOTAL SCORE: 1132 Bonus ------- Follower Combat Kills 170 Cogmind --------- Core Integrity 0/250 Matter 290/300 Energy 57/100 System Corruption 5% Temperature Cool (20) Movement Hovering (85) Location -10/Mines Parts ------- > --- POWER (1) -------- (None) > --- PROPULSION (2) --- Wheel Combat Airjet > --- UTILITY (2) ------ Small Storage Unit Thief Drone Bay (1/3) > --- WEAPON (2) ------- Mini Grenade Launcher Mining Laser > --- INVENTORY (8) ---- Experimental Sensor Array Signal Interpreter Seismic Detector Light Armor Plating Datajack Signal Generator Peak State ------------ > --- POWER ------------ (None) > --- PROPULSION ------- Wheel Combat Airjet > --- UTILITY ---------- Small Storage Unit Thief Drone Bay > --- WEAPON ----------- Mini Grenade Launcher Mining Laser > --- INVENTORY -------- Experimental Sensor Array Signal Interpreter Seismic Detector Light Armor Plating Datajack Signal Generator [Rating: 18] Favorites ----------- Power Light Nuclear Core Engine Ion Engine Power Core Light Nuclear Core Propulsion Light Treads Treads Light Treads Leg Aluminum Leg Wheel Wheel Hover Unit Combat Airjet Utility Small Storage Unit Device Seismic Detector Storage Small Storage Unit Processor Signal Interpreter Weapon Medium Laser Energy Gun Medium Laser Ballistic Gun Assault Rifle Ballistic Cannon Light Cannon Launcher Mini Grenade Launcher Special Weapon Mining Laser Build | -11 -10 -10 ------- Run | Scr Mat Min Slots Evolved . | . . . Power . | . . . Propulsion . | . . . Utility . | . . . Weapon . | . . . Parts Attached 25 | 8 7 10 Power 3 | 1 2 . Engine 2 | 1 1 . Core 1 | . 1 . Reactor . | . . . Propulsion 6 | 3 1 2 Treads 3 | 2 1 . Leg 1 | 1 . . Wheel 1 | . . 1 Hover 1 | . . 1 Flight . | . . . Utility 8 | 2 2 4 Device 4 | 1 . 3 Storage 1 | 1 . . Processor 3 | . 2 1 Hackware . | . . . Protection . | . . . Artifact . | . . . Weapon 8 | 2 2 4 Energy Gun 4 | 1 2 1 Energy Cannon . | . . . Ballistic Gun 1 | 1 . . Ballistic Cannon 1 | . . 1 Launcher 1 | . . 1 Special Weapon 1 | . . 1 Impact Weapon . | . . . Slashing Weapon . | . . . Piercing Weapon . | . . . Special Melee Weapon . | . . . Unidentified Prototypes 1 | . . 1 Parts Lost 6 | . . 6 Power 1 | . . 1 Propulsion 2 | . . 2 Utility . | . . . Weapon 3 | . . 3 Highest Loss Streak 5 | . . 5 To Critical Strikes . | . . . Average Slot Usage (%) 96 | . 99 93 Engine 5 | . 8 . Core 8 | . 5 13 Treads 27 | . 28 25 Device 1 | . 1 1 Storage 14 | . 14 14 Processor 12 | . 12 12 Energy Gun 14 | . 14 16 Ballistic Gun 11 | . 14 7 Naked Turns . | . . . Heaviest Build 18 | 14 14 18 Greatest Support 40 | 40 40 40 Greatest Overweight (x) 2 | 1 . 2 Average Overweight (x) . | . . . Largest Inventory Capacity 8 | 8 8 8 Average Capacity 7 | 7 8 8 Most Carried 8 | 3 8 8 Average Carried 7 | 1 7 7 Final Capacity 8 | 8 8 8 Final Carried 8 | 3 8 6 Class Distribution -------------------- 100% | Mutant Dominant Class ---------------- Mutant | -10/Materials Mutant | -10/Mines Resources | -11 -10 -10 ----------- Run | Scr Mat Min Matter Collected 725 | 278 255 192 Remotely . | . . . Salvage Created 658 | 71 477 110 Parts 34 | 6 24 4 Haulers Intercepted 1 | . 1 . Recyclers Shooed 2 | 1 . 1 Parts Field Recycled . | . . . Retrieved Matter . | . . . Parts Self-Destructed . | . . . Prevented . | . . . Kills | -11 -10 -10 ------- Run | Scr Mat Min Combat Hostiles Destroyed 12 | . 9 3 Guns 11 | . 9 2 Cannons 1 | . . 1 Classes Destroyed 9 | 2 5 2 Worker 3 | . 3 . Builder 1 | . . 1 Tunneler 1 | 1 . . Hauler 1 | . 1 . Recycler 2 | 1 . 1 Operator 1 | . 1 . Watcher 1 | . 1 . Grunt 9 | . 9 . Assembled 3 | . . 3 Best Kill Streak 4 | 2 4 2 Combat Bots Only 4 | . 4 2 Max Kills in Single Turn 2 | 1 2 1 Gunslinging . | . . . Exploded . | . . . Melee . | . . . Uniques/NPCs Destroyed . | . . . Combat | -11 -10 -10 -------- Run | Scr Mat Min Damage Taken 1032 | . 322 710 Core 252 | . 58 194 Absorbed by Shields . | . . . Core Remaining (%) 100 | 100 . . Volleys Fired 79 | 5 43 31 Largest 2 | 2 2 2 Hottest 100 | 60 70 100 Shots Fired 144 | 10 85 49 Gun 135 | 10 85 40 Cannon 8 | . . 8 Launcher . | . . . Special 1 | . . 1 Kinetic 63 | 5 42 16 Thermal 81 | 5 43 33 Explosive . | . . . Electromagnetic . | . . . Robot Hit Streak 17 | 7 17 4 Robot Miss Streak 4 | 1 2 4 Penetration Max . | . . . Secondary Targets 1 | . 1 . Max Gunslinging Chain 1 | . 1 . Shots Hit Robots 101 | 8 66 27 Core Hits 38 | 3 26 9 Critical Kills . | . . . Critical Parts Destroyed . | . . . Critical Strikes 7 | . 4 3 Burn 7 | . 4 3 Melee Attacks . | . . . Impact . | . . . Slashing . | . . . Piercing . | . . . Sneak Attacks . | . . . Combat Hostiles . | . . . Follow-up Attacks . | . . . Damage Inflicted 1369 | 91 861 417 Guns 1248 | 91 861 296 Cannons 90 | . . 90 Explosions . | . . . Melee . | . . . Ramming 7 | . . 7 Kinetic 607 | 57 413 137 Thermal 755 | 34 448 273 Explosive . | . . . Electromagnetic . | . . . Impact . | . . . Slashing . | . . . Piercing . | . . . Highest Corruption 5 | . 5 5 Average Corruption 3 | . 3 5 Corruption Purged . | . . . Corruption Blocked . | . . . Effects 45 | . 21 24 Message Errors 12 | . 6 6 Matter Fused 12 | . 5 7 Heat Flow Errors 5 | . 2 3 Energy Discharges 8 | . 4 4 Parts Rejected 1 | . . 1 Data Loss (minor) 3 | . 1 2 Data Loss (major) 1 | . 1 . Misfires 1 | . . 1 Alerts 1 | . 1 . Weapon Failures 1 | . 1 . Overload Shots . | . . . Overflow Damage 4 | . . 4 Projectiles 4 | . . 4 Explosions . | . . . Melee . | . . . Knockbacks 1 | . . 1 Impact . | . . . Kinetic 1 | . . 1 Secondary . | . . . Self-Inflicted Damage 1 | . . 1 Shots . | . . . Rammed 2 | . . 2 Targets Rammed 3 | . . 3 Kicked . | . . . Crushed 1 | . . 1 Highest Temperature 366 | . 342 366 Average Temperature 114 | . 78 158 Received Heat Transfer 549 | . 174 375 Effects 4 | . . 4 Shutdowns 1 | . . 1 Energy Bleed 1 | . . 1 Short Circuit 1 | . . 1 Damage (minor) 1 | . . 1 Siege Activations . | . . . Robots Corrupted . | . . . Combat Hostiles . | . . . Parts Fried . | . . . Impact Corruptions . | . . . Robots Melted . | . . . Combat Hostiles . | . . . Parts Melted 5 | 1 4 . Heat Transferred 2534 | 75 1507 952 Parts Sabotaged . | . . . Parts Stolen . | . . . Parts Stripped . | . . . Power Chain Reactions . | . . . Missiles Intercepted . | . . . Alert | -11 -10 -10 ------- Run | Scr Mat Min Peak Influence 166 | 10 166 143 Initial 8 | . 6 8 Average 55 | 3 62 51 Maximum Alert Level . | . . . Low Security (%) 100 | 100 100 100 Level 1 . | . . . Level 2 . | . . . Level 3 . | . . . Level 4 . | . . . Level 5 . | . . . High Security . | . . . Max Security . | . . . Squads Dispatched 5 | . 4 1 Investigation 2 | . 2 . Extermination . | . . . Reinforcement 2 | . 2 . Assault 1 | . . 1 Garrison . | . . . Intercept . | . . . Searches Triggered . | . . . Construction Impeded . | . . . Haulers Reinforced . | . . . Active Scanning Responses . | . . . Cargo Convoy Interrupts . | . . . Stealth | -11 -10 -10 --------- Run | Scr Mat Min Distress Signals 1 | . 1 . Communications Jammed . | . . . Distress Signals . | . . . Times Spotted 31 | . 14 17 Peak Tracking Total 5 | . 3 5 Tactical Retreats 1 | . 1 . Traps | -11 -10 -10 ------- Run | Scr Mat Min Traps Triggered 4 | . 4 . Indirectly . | . . . Trap Hack Attempts . | . . . Triggered . | . . . Disarmed . | . . . Reprogrammed . | . . . Reused . | . . . Traps Extracted . | . . . Installed . | . . . Triggered . | . . . Machines | -11 -10 -10 ---------- Run | Scr Mat Min Machines Disabled . | . . . Max in Single Turn . | . . . Machines Sabotaged . | . . . Garrisons Compromised . | . . . Overloaded Fab Kills . | . . . Hacking | -11 -10 -10 --------- Run | Scr Mat Min Machines Accessed 8 | . 7 1 Terminals 6 | . 6 . Fabricators . | . . . Repair Stations . | . . . Recycling Units 1 | . 1 . Scanalyzers . | . . . Garrison Access . | . . . Total Hacks 29 | . 28 1 Successful 15 | . 14 1 Failed 14 | . 14 . Catastrophic 1 | . 1 . Database Lockouts . | . . . Manual 23 | . 23 . Terminals 24 | . 24 . Fabricators . | . . . Repair Stations . | . . . Recycling Units 4 | . 4 . Scanalyzers . | . . . Garrison Access . | . . . Terminal Hacks 8 | . 7 1 Robot Analysis 4 | . 4 . Prototype ID Bank 2 | . 2 . Open Door 1 | . . 1 Terminal Index 1 | . 1 . Fabricator Hacks . | . . . Repair Station Hacks . | . . . Recycling Unit Hacks . | . . . Scanalyzer . | . . . Garrison Access Hacks . | . . . Unauthorized Hacks 7 | . 7 . Terminals 6 | . 6 . Botnet 5 | . 5 . Operators 1 | . 1 . Fabricators . | . . . Repair Stations . | . . . Recycling Units 1 | . 1 . Tunnel 1 | . 1 . Scanalyzers . | . . . Garrison Access . | . . . Data Cores Recovered . | . . . Used . | . . . Hacking Detections 7 | . 7 . Full Trace Events 3 | . 3 . Feedback Events . | . . . Feedback Blocked . | . . . Robot Schematics Acquired . | . . . Robots Built . | . . . Authchips . | . . . Time . | . . . Total Robot Build Rating . | . . . Part Schematics Acquired . | . . . Parts Built . | . . . Authchips . | . . . Time . | . . . Total Part Build Rating . | . . . Parts Repaired . | . . . Time . | . . . Parts Recycled . | . . . Recycled Matter . | . . . Retrieved Matter . | . . . Retrieved Components . | . . . Parts Scanalyzed . | . . . Part Schematics Acquired . | . . . Parts Damaged . | . . . Bothacking | -11 -10 -10 ------------ Run | Scr Mat Min Used RIF Installer . | . . . Robots Hacked . | . . . Non-combat . | . . . Combat . | . . . Robot Hacks Applied . | . . . Relay Couplers Released . | . . . Fabnet Peak Effective % . | . . . Robots Rewired . | . . . Allies Hacked . | . . . Hacks Repelled . | . . . Allies | -11 -10 -10 -------- Run | Scr Mat Min Total Allies 1 | . . 1 Largest Group 1 | . . 1 Highest-Rated Group 31 | . . 31 Highest-Rated Ally 31 | . . 31 Total Orders 1 | . . 1 RETURN 1 | . . 1 Ally Attacks 46 | . . 46 Total Damage 510 | . . 510 Kills 10 | . . 10 Allies Corrupted 1 | . . 1 Allies Melted . | . . . Intel | -11 -10 -10 ------- Run | Scr Mat Min Robot Analysis Total 4 | . 4 . Derelict Logs Recovered 1 | . . 1 Drone Launches 3 | . . 3 Drone Recoveries 1 | . . 1 Exploration | -11 -10 -10 ------------- Run | Scr Mat Min Turns Passed 2017 | 97 1099 821 Spaces Moved 1046 | 42 577 427 Core 17 | 4 . 13 Treads 1020 | 38 577 405 Legs . | . . . Wheels 9 | . . 9 Hover . | . . . Flight . | . . . Fastest Speed 50 | 50 160 80 Average Speed 158 | 153 160 158 Slowest Speed 160 | 160 160 160 Overloaded Moves . | . . . Propulsion Burnouts . | . . . Robots Hopped . | . . . Cave-ins Triggered . | . . . Exploration Rate (%) 59 | 4 95 78 Regions Visited 2 Branch Regions 1 Pre-discovered Areas 1 | . 1 . Known Exits Taken . | . . . Unknown Exits Taken 2 | 1 1 . Scrap Searched 1 | . . 1 Spaces Dug . | . . . Terrain Destroyed . | . . . Melee . | . . . Projectile . | . . . AOE . | . . . Terrain Rammed . | . . . Walls Destroyed . | . . . Machines Disabled . | . . . Actions | -11 -10 -10 --------- Run | Scr Mat Min Total 1256 | 62 672 522 Wait 69 | 3 23 43 Move 1044 | 41 576 427 Hop . | . . . Pick Up 15 | 3 9 3 Fast Attach 18 | 8 5 5 Attach 4 | . . 4 Detach 8 | 1 4 3 Swap 3 | . 2 1 Drop 13 | 1 10 2 Fire 79 | 5 43 31 Melee . | . . . Ram 2 | . . 2 Kick . | . . . Crush 1 | . . 1 Escape Stasis . | . . . Rewire . | . . . Trap . | . . . Miscellaneous . | . . . Route ------- -11/Scrapyard -10/Materials (discovered 5 exits: *Mat x3 / *Min x2) -10/Mines (discovered 1 exit: *Mat) History --------- Turn | Location | Event 13 | -11/Scrapyard | Discovered new exit (range 16) 98 | -11/Scrapyard | Entered Materials 279 | -10/Materials | Met 8R-AWN 286 | -10/Materials | Discovered new exit (range 13) 302 | -10/Materials | Build established: Mutant 421 | -10/Materials | Discovered new exit (range 8) 530 | -10/Materials | Discovered new exit (range 8) 807 | -10/Materials | Discovered new exit (range 4) 823 | -10/Materials | Identified exit to Materials 909 | -10/Materials | Discovered exit to Materials (range 15) 1197 | -10/Materials | Entered Mines 1199 | -10/Mines | Followed 8R-AWN into the Mines 1280 | -10/Mines | Found the Drone Emporium 1291 | -10/Mines | Found Prototype Device 1324 | -10/Mines | Discovered exit to Materials (range 10) 1326 | -10/Mines | Identified Thief Drone Bay 1564 | -10/Mines | Met a Derelict testing a Signal Generator 1576 | -10/Mines | Found Signal Generator 1699 | -10/Mines | Found a damaged Exp. Sensor Array with a note attached 1702 | -10/Mines | Found Prototype Device 1717 | -10/Mines | Learned Materials emergency access door positions 1778 | -10/Mines | Core integrity fell below 50% 1824 | -10/Mines | Assembled infested the area 1829 | -10/Mines | Assisted by a Guerilla fighting off Assembled 1958 | -10/Mines | Core integrity fell below 20% 2002 | -10/Mines | Lost 5 parts (1p2n2w) 2018 | -10/Mines | Destroyed by as-86315 with Assembled F-torch Last Messages --------------- 01981_ System corrupted: Thief Drone Bay rejected. 01981_ Acquired Thief Drone Bay. 01981_ as-24621 destroyed. 01983_ as-80907 destroyed. 01987_ Acquired 10 matter. 01988_ Thief Drone destroyed. 01989_ Acquired 2 matter. 01990_ Thief Drone destroyed. 01995_ Acquired Wheel. 01995_ as-65383 destroyed. 02001_ Acquired 10 matter. 02002_ Slammed into as-17434. 02005_ System corrupted: Heat flow error (+137). 02006_ Acquired 10 matter. 02006_ as-17434 destroyed. 02007_ Thief Drone sneak attacks. 02013_ Thief Drone retrieved by Thief Drone Bay. 02014_ Acquired Mni. Grenade Launcher. 02015_ Acquired 10 matter. 02017_ Acquired Cmb. Airjet. Map ----- +----------------------------------------------------+ | #???????????#* ##?????????????? | | ##???????????????#### ##### ##??????????????? | | #???????????????????# #???## #???????????????? | | #?????????????????### ##???##"%"##???????????????? | | ????????????????## ##??## ##???????????????? | | ????????????????# ####% ##??????????????? | | ?????????????????# =% ##?????????????? | | ?????????????????# """" *! #?????????????? | | ?????????????????# """" !% ##?????????????? | | ?????????????????# """" = #####??????????????? | | ?????????????????# ! ##??????????????????? | | ?????????????????## #???????????????????? | | ###???????????????## #??????###??????????? | | ##???????????????# #????## ##?????????? | | #####???????????# #????# ###???????? | | ##??????????# * % #???## ##??????? | | #######????## ] #???# #??????? | | #????## ## #???# #??????? | | ###????????? = ### #??## #??????? | | ##??????????##*%#? #?## #??????? | | ##????# ###### #?# ### #???????? | | #?????# #?# ## #?????????? | | #????######### # ###?????????? | | #????????# ## # ##??????###??? | | #?????????# # ##??????# ##?? | | #????????# # @% ####??????# #?? | | #### #?????????# ! ##???????# ##? | | #???# #????????## % #??????# #? | | #???? #????????### # # a ##????## #? | | #????? #?????########%#% #???### #? | | #?????? #??????# %%%% #??## #? | | ???????####??????# #####%######### #? | | ?????????????????# #???#%#??# #?? | | ?????????????????# #???#%#??# #### #?? | | # ?????????????????# #???#%#### #### #?? | | ?#?????????????????#%#???#!% ##?? | | ???????????????????#=#???########### ##??? | | ??????????????######%##????????????## #???? | | ??????######### =#?????????????# ##???? | | ??????? ##""" #?????????????## ##????? | | ????????? ##""" #??????????????## ##?????? | | ??????????# ##""" #????????????????####??????? | | ??????????# ## #??????????????????????????? | | ??????????# ## #??????????????????????????? | | ??????????# #??????????????????????????? | | ??????????# #######??????????????????????????? | | ??????????#######????????????????????????????????? | | ?????????????????????????????????????????????????? | | ?????????????????????????????????????????????????? | | | +----------------------------------------------------+ Best States ------------- Heat Dissipation 25 Energy Generation 14 Energy Capacity 250 Matter Stores 300 Matter Capacity 300 Sight Range 18 Terrain Scan Density 10 Evasion (%) 40 Recoil Reduction 2 Item Schematics ----------------- None Robot Schematics ------------------ None Fabricated ------------ Nothing Alien Tech Used ----------------- None Achievements -------------- None Challenges ------------ None Game ------ Seed BurstLightningGravjet Manual? 0 Play Time 00:15:14 Cumulative 470.4 hours Start 2022.03.22 @ 17:36:33 End 2022.03.23 @ 07:45:08 Sessions 3 Manual Loads 0 Difficulty Rogue Special Mode None Game No. 383 Rogue 383 Adventurer 0 Explorer 0 Win Type - Total 3 Types 2/0/0/1/0/0/0/0/0 Lore% 68 Gallery% 77 Achievement% 66 Wizard Run 0 Options --------- ASCII 0 Keyboard 1 Movement Numpad Keybinds 0 Fullscreen 1 Font 12/Terminus Map View 83x54 Tactical HUD 1 Map Filters NONE Filters NONE Steam 1 RUN: 4a032b0b-9fdc-42f8-8b9a-d9699b706d0a